[Event "33rd ECCC Open 2017"]
[Site "Antalya"]
[Date "2017.10.12"]
[Round "5"]
[White "Alava, Mikko"]
[Black "Reimanis, Ritvars"]
[Result "0-1"]
[ECO "B50"]
[WhiteElo "2212"]
[BlackElo "2294"]
[Annotator "NA"]
[PlyCount "82"]
[EventType "team-tourn"]
[EventCountry "TUR"]
[SourceTitle "playchess.com"]
[Source "ChessBase"]
[SourceQuality "1"]
[WhiteTeam "Etela-Vantaan"]
[BlackTeam "Riga"]
[TimeControl "40/5400+30:1800+30"]

1. e4 {[%emt 0:00:30]} c5 {[%emt 0:01:00]} 2. Nf3 {[%emt 0:00:30]} Nc6 {[%emt 0:00:30]} 3. b3 {[%emt 0:00:30]} d6 {[%emt 0:00:30]} 4. Bb5 {[%emt 0:00:30]} Bd7 {[%emt 0:00:30]} 5. O-O {[%emt 0:00:00] B50: Sicilian: 2...d6, Miscellaneous} a6 {[%emt 0:03:30]} (5... Nf6 6. d3 g6 7. Bb2 Bg7 8. Nbd2 O-O 9. a4 e5 10. Nc4 a6 11. Bxc6 Bxc6 12. a5 Nh5 13. Nb6 Rb8 14. c4 f5 15. Nd5 Qd7 16. Nd2 fxe4 17. dxe4 {1-0 (76) Andreikin,D (2708)-Artemiev,V (2692) Sochi 2017}) 6. Be2 {[%emt 0:05:00]} Nf6 $146 {[%emt 0:00:30]} ({Predecessor:} 6... e5 7. Bb2 f5 8. d3 Nf6 9. Nbd2 Be7 10. c3 fxe4 11. dxe4 O-O 12. Nc4 Nxe4 {1-0 (22) Dembo,Y-Ovezova,M Szeged 1994}) 7. d3 {[%emt 0:00:00]} g6 {[%emt 0:02:30]} 8. Bb2 {[%emt 0:02:00]} Bg7 {[%emt 0:00:30]} 9. Nc3 {[%emt 0:07:30]} O-O {[%emt 0:01:30]} 10. Nd5 {[%emt 0:02:30]} e6 {[%emt 0:04:30]} 11. Nxf6+ {[%emt 0:02:30]} Bxf6 {[%emt 0:00:00]} 12. Bxf6 {[%emt 0:00:30]} Qxf6 {[%emt 0:00:00]} 13. Qd2 {[%emt 0:00:30]} b5 {[%emt 0:05:30]} 14. Rfd1 {[%emt 0:10:30]} e5 {[%emt 0:00:30]} 15. c3 {[%emt 0:00:30]} b4 {[%emt 0:00:30]} 16. cxb4 {[%emt 0:08:30]} Nxb4 {[%emt 0:03:30]} 17. a3 {[%emt 0:02:30]} Nc6 {[%emt 0:00:00]} 18. b4 {[%emt 0:02:30]} Bg4 {[%emt 0:04:00]} 19. bxc5 {[%emt 0:04:30]} Bxf3 {[%emt 0:00:30]} 20. Bxf3 {[%emt 0:00:00]} Nd4 {[%emt 0:00:00]} 21. Rab1 {[%emt 0:02:00]} dxc5 {[%emt 0:08:00]} 22. Qe3 {[%emt 0:08:30]} Rab8 {[%emt 0:01:30]} 23. Rdc1 {[%emt 0:01:30]} Rb6 {[%emt 0:01:30]} 24. Rxb6 {[%emt 0:07:30]} Qxb6 {[%emt 0:00:30]} 25. Qd2 {[%emt 0:03:30]} Rb8 {[%emt 0:00:30]} 26. Qc3 {[%emt 0:01:30]} Qd6 {[%emt 0:02:30]} 27. Bd1 {[%emt 0:02:30]} Rb3 {[%emt 0:01:30]} 28. Qc4 {[%emt 0:07:54]} Rxa3 {[%emt 0:00:30]} 29. Rb1 {[%emt 0:00:19]} Ra5 {[%emt 0:11:30]} 30. Bb3 {[%emt 0:05:32]} (30. g3 $17) 30... Nxb3 {[%emt 0:01:30]} 31. Qxb3 {[%emt 0:00:10]} Rb5 {[%emt 0:00:30]} 32. Qc2 {[%emt 0:00:39]} Qb6 {[%emt 0:00:30]} 33. Rc1 {[%emt 0:02:48]} Rb2 {[%emt 0:01:30]} 34. Qc3 {[%emt 0:01:54]} Rb1 {[%emt 0:00:30]} 35. g3 $19 {[%emt 0:00:58]} (35. Rf1 {was worth a try.}) 35... Rxc1+ {[%emt 0:00:30]} 36. Qxc1 {[%emt 0:00:02]} Kg7 {[%emt 0:06:30]} 37. Qc3 {[%emt 0:01:43]} Qd6 {[%emt 0:01:30]} 38. Qc4 {[%emt 0:00:59]} a5 {[%emt 0:00:30]} 39. Qb5 {[%emt 0:01:58]} a4 {[%emt 0:00:30]} 40. Qxa4 {[%emt 0:00:00]} Qxd3 {[%emt 0:00:30]} 41. Qe8 {[%emt 0:07:04]} Qb1+ {[%emt 0:00:30]} 0-1

[Event "33rd ECCC Open 2017"]
[Site "Antalya"]
[Date "2017.10.12"]
[Round "5"]
[White "Vea, Odin Blikra"]
[Black "Persson, Mats"]
[Result "0-1"]
[ECO "C54"]
[WhiteElo "2211"]
[BlackElo "2292"]
[Annotator "NA"]
[PlyCount "116"]
[EventType "team-tourn"]
[EventCountry "TUR"]
[SourceTitle "playchess.com"]
[Source "ChessBase"]
[SourceQuality "1"]
[WhiteTeam "Valerenga"]
[BlackTeam "Oslo"]
[TimeControl "40/5400+30:1800+30"]

1. e4 {[%emt 0:00:30]} e5 {[%emt 0:01:00]} 2. Nf3 {[%emt 0:00:30]} Nc6 {[%emt 0:00:30]} 3. Bc4 {[%emt 0:00:30]} Bc5 {[%emt 0:00:30]} 4. c3 {[%emt 0:00:30]} Nf6 {[%emt 0:00:30]} 5. d4 {[%emt 0:00:30]} exd4 {[%emt 0:00:30]} 6. cxd4 {[%emt 0:00:30]} Bb4+ {[%emt 0:00:30]} 7. Nbd2 {[%emt 0:00:00] C54: Giuoco Piano: 4 c3 Nf6, main lines with 5 d4 and 5 d3} (7. Bd2 Bxd2+ 8. Nbxd2 d5 9. exd5 Nxd5 10. O-O O-O 11. Rc1 Nb6 12. Bb3 a5 13. a3 a4 14. Ba2 Nxd4 15. Nxd4 Qxd4 16. Rxc7 Qxb2 17. Nc4 Nxc4 18. Bxc4 Qf6 19. Re1 {½-½ (30) Ma,Q (2637)-Wei,Y (2728) Beijing 2017}) 7... Nxe4 {[%emt 0:06:30]} 8. d5 {[%emt 0:00:00]} Nxd2 {[%emt 0:02:30]} 9. Bxd2 {[%emt 0:00:00]} Bxd2+ {[%emt 0:08:30]} 10. Qxd2 {[%emt 0:00:00]} Ne7 {[%emt 0:00:00]} 11. d6 {[%emt 0:00:30]} cxd6 {[%emt 0:00:00]} 12. O-O {[%emt 0:00:30]} O-O {[%emt 0:06:30]} 13. Qxd6 {[%emt 0:01:30]} Nf5 {[%emt 0:03:30]} 14. Qd2 $146 {[%emt 0:11:30]} ({Predecessor:} 14. Qf4 d6 {1-0 (36) Simacek,P (2454)-Sosna,J (2340) Czech Republic 2016}) 14... d6 {[%emt 0:03:30]} 15. Bd5 {[%emt 0:07:30]} Rb8 {[%emt 0:08:30]} 16. Rfe1 {[%emt 0:07:30]} Bd7 {[%emt 0:10:30]} 17. Rac1 {[%emt 0:08:30]} h6 {[%emt 0:14:30]} 18. Qd3 {[%emt 0:14:30]} a6 {[%emt 0:08:30]} 19. Rc3 {[%emt 0:03:30]} Ne7 {[%emt 0:02:30]} 20. Bb3 {[%emt 0:21:41]} Bf5 {[%emt 0:00:00]} 21. Qe3 {[%emt 0:08:46]} Nc6 {[%emt 0:00:00]} 22. Qf4 {[%emt 0:00:30]} Qd7 {[%emt 0:00:00]} 23. g4 {[%emt 0:00:30]} Bxg4 {[%emt 0:00:00]} 24. Nh4 {[%emt 0:00:30]} Rbe8 {[%emt 0:00:00]} 25. Rxe8 {[%emt 0:01:00]} Rxe8 {[%emt 0:00:00]} 26. Rg3 {[%emt 0:00:30]} Re1+ {[%emt 0:00:00]} 27. Kg2 {[%emt 0:02:34]} Ne5 {[%emt 0:08:51]} 28. h3 {[%emt 0:00:30]} g5 {[%emt 0:08:35]} 29. Rxg4 {[%emt 0:01:32]} Nxg4 {[%emt 0:03:00]} 30. Qd2 {[%emt 0:04:15]} Re7 {[%emt 0:00:30]} 31. Ng6 {[%emt 0:00:30]} Re6 {[%emt 0:00:00]} 32. Bxe6 {[%emt 0:00:00]} Qxe6 {[%emt 0:00:00]} 33. hxg4 {[%emt 0:00:00]} Qxg4+ {[%emt 0:00:00]} 34. Kf1 {[%emt 0:00:00]} Qh3+ {[%emt 0:00:00]} 35. Kg1 {[%emt 0:00:00]} Qg4+ {[%emt 0:00:00]} 36. Kf1 {[%emt 0:00:00]} Qc4+ {[%emt 0:00:00]} 37. Kg1 {[%emt 0:00:00]} fxg6 {[%emt 0:00:00]} 38. b3 {[%emt 0:00:00]} Qg4+ {[%emt 0:00:00]} 39. Kf1 {[%emt 0:00:00]} Qd7 {[%emt 0:00:00]} 40. Qd5+ {[%emt 0:00:00]} Kh7 {[%emt 0:06:34]} 41. a4 {[%emt 0:09:12]} g4 {[%emt 0:00:30]} 42. Kg1 {[%emt 0:08:30]} h5 {[%emt 0:02:30]} 43. Kf1 {[%emt 0:00:30]} Qc7 {[%emt 0:00:30]} 44. Qe6 {[%emt 0:00:30]} Kg7 {[%emt 0:00:30]} 45. Kg1 {[%emt 0:00:30]} Qd8 {[%emt 0:00:30]} 46. Kf1 {[%emt 0:08:30]} d5 {[%emt 0:01:30]} 47. Ke2 {[%emt 0:00:30]} Kh6 {[%emt 0:00:30]} 48. Qf7 {[%emt 0:00:30]} b6 {[%emt 0:01:30]} 49. Kd3 $19 {[%emt 0:01:19]} Qd6 {[%emt 0:01:30]} 50. Qg8 {[%emt 0:03:48]} Kg5 {[%emt 0:04:30]} 51. Qc8 {[%emt 0:00:30]} a5 {[%emt 0:00:30]} 52. Qe8 {[%emt 0:00:30]} d4 {[%emt 0:00:30]} 53. b4 {[%emt 0:00:30]} axb4 {[%emt 0:00:30]} 54. Qb5+ {[%emt 0:00:34]} Kh4 {[%emt 0:00:30]} 55. a5 {[%emt 0:00:30]} bxa5 {[%emt 0:00:30]} 56. Qxa5 {[%emt 0:02:18]} Qf6 {[%emt 0:03:30]} 57. Qa2 {[%emt 0:01:35]} Qf4 {[%emt 0:01:30]} 58. Ke2 {[%emt 0:00:35]} Qf3+ {[%emt 0:02:22]} 0-1

[Event "33rd ECCC Open 2017"]
[Site "Antalya"]
[Date "2017.10.12"]
[Round "5"]
[White "Delaney, Killian"]
[Black "Tsarouhas, Konstantinos"]
[Result "1-0"]
[ECO "B22"]
[WhiteElo "2202"]
[BlackElo "2126"]
[Annotator "NA"]
[PlyCount "111"]
[EventType "team-tourn"]
[EventCountry "TUR"]
[SourceTitle "playchess.com"]
[Source "ChessBase"]
[SourceQuality "1"]
[WhiteTeam "Gonzaga"]
[BlackTeam "Chania"]
[TimeControl "40/5400+30:1800+30"]

1. e4 {[%emt 0:07:30]} c5 {[%emt 0:26:00]} 2. c3 {[%emt 0:00:30]} Nf6 {[%emt 0:00:30]} 3. e5 {[%emt 0:00:30]} Nd5 {[%emt 0:00:30]} 4. Bc4 {[%emt 0:00:30]} Nb6 {[%emt 0:00:30]} 5. Bb3 {[%emt 0:00:30]} c4 {[%emt 0:00:30]} 6. Bc2 {[%emt 0:00:30]} Nc6 {[%emt 0:00:30]} 7. Nf3 {[%emt 0:00:30]} d6 {[%emt 0:00:30]} 8. exd6 {[%emt 0:00:30]} e5 {[%emt 0:00:30]} 9. O-O {[%emt 0:00:30]} Be6 {[%emt 0:00:30]} 10. a4 {[%emt 0:00:30]} Bxd6 {[%emt 0:00:30]} 11. a5 {[%emt 0:00:30]} Nd7 {[%emt 0:00:30]} 12. d4 {[%emt 0:00:30]} cxd3 {[%emt 0:00:30]} 13. Bxd3 {[%emt 0:00:30]} Nxa5 {[%emt 0:00:30]} 14. Bb5 {[%emt 0:09:30]} Bc7 {[%emt 0:05:30]} 15. Ng5 {[%emt 0:01:30]} Bb3 {[%emt 0:05:30]} (15... Bf5 $1 $15 {keeps the upper hand.}) 16. Qh5 $11 {[%emt 0:11:30]} h6 {[%emt 0:11:30]} 17. Ne4 {[%emt 0:19:30]} a6 {[%emt 0:16:30]} 18. Bxd7+ {[%emt 0:20:30]} Qxd7 {[%emt 0:00:00]} 19. Rxa5 {[%emt 0:00:30]} Bxa5 {[%emt 0:02:00]} 20. Nc5 {[%emt 0:00:30]} Qd5 {[%emt 0:16:39]} 21. Nxb3 {[%emt 0:00:00]} Bc7 {[%emt 0:00:23]} 22. N1d2 {[%emt 0:04:00]} O-O {[%emt 0:02:07]} 23. Qf3 {[%emt 0:04:07]} Qb5 {[%emt 0:01:19]} 24. c4 {[%emt 0:00:43]} Qb4 {[%emt 0:00:17]} 25. Na1 {[%emt 0:00:09]} Rad8 {[%emt 0:03:03]} 26. Nc2 {[%emt 0:00:39]} Qb6 {[%emt 0:03:33]} 27. Ne3 {[%emt 0:00:26]} Rd3 {[%emt 0:00:56]} 28. Qf5 {[%emt 0:01:02]} Qd4 {[%emt 0:01:32]} 29. Nd5 {[%emt 0:04:50]} Bb8 {[%emt 0:01:10]} 30. Ne7+ {[%emt 0:00:49]} Kh8 {[%emt 0:00:05]} 31. Ng6+ {[%emt 0:00:06]} Kg8 {[%emt 0:01:04]} 32. Nxf8 {[%emt 0:00:10]} Kxf8 {[%emt 0:00:32]} 33. Qc8+ {[%emt 0:00:41]} Qd8 {[%emt 0:00:08]} 34. Qxd8+ {[%emt 0:00:18]} Rxd8 {[%emt 0:00:01]} 35. Re1 {[%emt 0:00:14]} Rc8 {[%emt 0:00:26]} 36. b3 {[%emt 0:00:46]} b5 {[%emt 0:00:13]} 37. Ba3+ {[%emt 0:00:33]} Kg8 {[%emt 0:00:04]} 38. Kf1 {[%emt 0:00:06]} f5 {[%emt 0:01:30]} 39. Rc1 {[%emt 0:00:47]} Rd8 {[%emt 0:00:20]} 40. Ke2 {[%emt 0:00:00]} Kf7 {[%emt 0:01:08]} 41. cxb5 {[%emt 0:01:04]} axb5 {[%emt 0:00:30]} 42. Rc5 {[%emt 0:00:30]} Bd6 {[%emt 0:02:30]} 43. Rd5 {[%emt 0:01:30]} Be7 {[%emt 0:01:30]} 44. Rxd8 {[%emt 0:00:00]} Bxd8 {[%emt 0:00:00]} 45. Nb1 {[%emt 0:03:00]} Ke6 {[%emt 0:01:00]} 46. Nc3 {[%emt 0:00:30]} g5 {[%emt 0:01:30]} 47. Nxb5 {[%emt 0:00:00]} h5 {[%emt 0:00:00]} 48. Nc3 {[%emt 0:00:00]} h4 {[%emt 0:00:00]} 49. f3 {[%emt 0:00:30]} Bf6 {[%emt 0:03:30]} 50. Kd3 {[%emt 0:00:30]} Bd8 {[%emt 0:03:30]} 51. Bc5 {[%emt 0:00:30]} Kd7 {[%emt 0:00:30]} 52. b4 {[%emt 0:02:30]} Bc7 {[%emt 0:01:30]} 53. h3 {[%emt 0:00:00]} Bd8 {[%emt 0:00:30]} 54. Kc4 {[%emt 0:01:00]} Bf6 {[%emt 0:01:32]} 55. b5 {[%emt 0:00:30]} Kc8 {[%emt 0:01:05]} 56. Nd5 {[%emt 0:00:30]} 1-0

[Event "33rd ECCC Open 2017"]
[Site "Antalya"]
[Date "2017.10.12"]
[Round "5"]
[White "Salihu, Sami"]
[Black "Fox, Anthony"]
[Result "1/2-1/2"]
[ECO "D58"]
[WhiteElo "2187"]
[BlackElo "2016"]
[Annotator "NA"]
[PlyCount "108"]
[EventType "team-tourn"]
[EventCountry "TUR"]
[SourceTitle "playchess.com"]
[Source "ChessBase"]
[SourceQuality "1"]
[WhiteTeam "Dardania"]
[BlackTeam "Adare"]
[TimeControl "40/5400+30:1800+30"]

1. d4 {[%emt 0:00:30]} d5 {[%emt 0:01:00]} 2. c4 {[%emt 0:00:30]} e6 {[%emt 0:00:30]} 3. Nf3 {[%emt 0:00:30]} Nf6 {[%emt 0:00:30]} 4. Bg5 {[%emt 0:00:30]} Be7 {[%emt 0:00:30]} 5. Nc3 {[%emt 0:00:30]} h6 {[%emt 0:00:30]} 6. Bh4 {[%emt 0:00:30]} O-O {[%emt 0:00:30]} 7. e3 {[%emt 0:00:30]} b6 {[%emt 0:00:30]} 8. Bd3 {[%emt 0:00:30]} Bb7 {[%emt 0:00:30]} 9. O-O {[%emt 0:00:00]} Nbd7 {[%emt 0:00:00]} 10. Rc1 {[%emt 0:00:00]} c5 {[%emt 0:02:00]} 11. cxd5 {[%emt 0:01:30]} Nxd5 {[%emt 0:03:30]} 12. Bg3 {[%emt 0:00:30]} a6 {[%emt 0:04:30] D58: Queen's Gambit Declined: Tartakower Defence} (12... Nxc3 13. bxc3 Nf6 14. Qe2 Rc8 15. Ba6 Qd5 16. Bc4 Qh5 17. Ba6 Qd5 18. Bc4 Qh5 19. Ba6 Qd5 20. Bc4 {½-½ (20) Flores,D (2567)-Tang,A (2461) Medellin 2017}) 13. Bb1 {[%emt 0:00:30]} N7f6 {[%emt 0:11:30]} 14. Ne5 $146 {[%emt 0:02:30]} ({Predecessor:} 14. Na4 c4 15. e4 Nb4 16. Nc3 Nh5 17. Be5 b5 18. Bg3 Nxg3 19. hxg3 Qb6 20. Qe2 {1-0 (42) Gupta,A (2413)-Abhay,T (2236) Teheran 2004}) 14... Rc8 {[%emt 0:02:30]} 15. dxc5 {[%emt 0:01:30]} Nxc3 {[%emt 0:07:30]} 16. Rxc3 {[%emt 0:00:30]} Rxc5 {[%emt 0:01:30]} 17. Rd3 {[%emt 0:00:30]} Rd5 {[%emt 0:00:30]} 18. Qe2 {[%emt 0:08:30]} Rxd3 {[%emt 0:02:30]} 19. Nxd3 {[%emt 0:00:30]} Qa8 {[%emt 0:02:30]} 20. f3 {[%emt 0:00:00]} a5 {[%emt 0:02:30]} 21. Rd1 {[%emt 0:02:00]} Ba6 {[%emt 0:02:30]} 22. Qc2 {[%emt 0:01:30]} Rc8 {[%emt 0:01:30]} 23. Qb3 {[%emt 0:00:30]} Qb7 {[%emt 0:09:30]} 24. Ne5 {[%emt 0:02:30]} Rd8 {[%emt 0:04:30]} 25. Rxd8+ {[%emt 0:01:30]} Bxd8 {[%emt 0:00:30]} 26. e4 {[%emt 0:00:30]} Be7 {[%emt 0:04:30]} 27. Qc2 {[%emt 0:05:30]} Bc5+ {[%emt 0:02:30]} 28. Bf2 {[%emt 0:00:30]} Bxf2+ {[%emt 0:03:30]} 29. Kxf2 {[%emt 0:00:30]} Nd7 {[%emt 0:03:30]} 30. Ng4 {[%emt 0:03:30]} h5 {[%emt 0:01:30]} 31. Ne3 {[%emt 0:00:30]} Nc5 {[%emt 0:04:30]} 32. Qd2 {[%emt 0:01:30]} Qd7 {[%emt 0:01:30]} 33. Qxd7 {[%emt 0:01:30]} Nxd7 {[%emt 0:00:30]} 34. Ke1 {[%emt 0:00:00]} Kf8 {[%emt 0:00:30]} 35. Kd2 {[%emt 0:00:00]} Ke7 {[%emt 0:00:30]} 36. Bd3 {[%emt 0:00:00]} Bxd3 {[%emt 0:05:34]} 37. Kxd3 {[%emt 0:00:00]} Kd6 {[%emt 0:00:16]} 38. Nc4+ {[%emt 0:04:30]} Kc5 {[%emt 0:02:08]} 39. f4 {[%emt 0:00:00]} f6 {[%emt 0:02:28]} 40. Kc3 $11 {[%emt 0:00:00]} g5 {[%emt 0:06:04]} 41. g3 {[%emt 0:03:30]} h4 {[%emt 0:01:30]} 42. Ne3 {[%emt 0:00:30]} hxg3 {[%emt 0:00:30]} 43. hxg3 {[%emt 0:00:30]} gxf4 {[%emt 0:00:30]} 44. gxf4 {[%emt 0:00:00]} b5 {[%emt 0:00:30]} 45. Ng4 {[%emt 0:00:00]} b4+ {[%emt 0:01:30]} 46. Kd3 {[%emt 0:00:30]} a4 {[%emt 0:07:30]} 47. Ne3 {[%emt 0:01:30]} Nb6 {[%emt 0:00:30]} 48. b3 {[%emt 0:00:30]} a3 {[%emt 0:01:30]} 49. Ng4 {[%emt 0:00:30]} Nd7 {[%emt 0:07:30]} 50. Ke3 {[%emt 0:00:30]} e5 {[%emt 0:00:30]} 51. f5 {[%emt 0:00:30]} Kb5 {[%emt 0:00:30]} 52. Kd2 {[%emt 0:00:00]} Kc5 {[%emt 0:00:55]} 53. Ke3 {[%emt 0:01:00]} Kb5 {[%emt 0:00:08]} 54. Kd2 {[%emt 0:04:30]} Kc5 {[%emt 0:00:40]} 1/2-1/2

[Event "33rd ECCC Open 2017"]
[Site "Antalya"]
[Date "2017.10.12"]
[Round "5"]
[White "Jakobsen, Peter"]
[Black "Draskovic, Davor"]
[Result "1/2-1/2"]
[ECO "E54"]
[WhiteElo "2182"]
[BlackElo "2004"]
[Annotator "NA"]
[PlyCount "61"]
[EventType "team-tourn"]
[EventCountry "TUR"]
[SourceTitle "playchess.com"]
[Source "ChessBase"]
[SourceQuality "1"]
[WhiteTeam "Nordkalotten"]
[BlackTeam "Elektroprivreda"]
[TimeControl "40/5400+30:1800+30"]

1. d4 {[%emt 0:00:30]} Nf6 {[%emt 0:01:00]} 2. c4 {[%emt 0:00:30]} e6 {[%emt 0:00:30]} 3. Nc3 {[%emt 0:00:30]} Bb4 {[%emt 0:00:30]} 4. e3 {[%emt 0:00:30]} O-O {[%emt 0:00:30]} 5. Bd3 {[%emt 0:00:30]} c5 {[%emt 0:00:30]} 6. Nf3 {[%emt 0:00:30]} d5 {[%emt 0:00:30]} 7. O-O {[%emt 0:00:00]} cxd4 {[%emt 0:04:30]} 8. exd4 {[%emt 0:00:00]} dxc4 {[%emt 0:00:30]} 9. Bxc4 {[%emt 0:00:00]} b6 {[%emt 0:00:00]} 10. Bg5 {[%emt 0:00:00]} Bb7 {[%emt 0:00:00]} 11. Re1 {[%emt 0:00:30]} Nbd7 {[%emt 0:01:30] E54: Nimzo-Indian: Rubinstein: Main Line: 7...dxc4 8 Bxc4} 12. Qe2 {[%emt 0:02:30]} (12. Rc1 Rc8 13. Bd3 h6 14. Bh4 a6 15. Qe2 b5 16. Ne5 Be7 17. Bg3 b4 18. Na4 Nxe5 19. dxe5 Nd5 20. Bxa6 Bxa6 21. Qxa6 {½-½ (33) Korobov,A (2692)-Anand,V (2779) Doha 2016}) 12... Rc8 $146 {[%emt 0:02:30]} ({Predecessor:} 12... Bxc3 13. bxc3 Qc7 14. Nd2 Nd5 15. Rac1 h6 16. Bh4 Nf4 17. Qg4 Nxg2 18. Bg3 Qc6 19. Rxe6 fxe6 20. Bxe6+ Kh8 21. d5 Qc5 {0-1 (35) Brustkern,J (2246)-Ornstein,A (2322) Vasteras 2016}) 13. Ne5 {[%emt 0:05:30]} Qc7 {[%emt 0:03:30]} 14. Nb5 {[%emt 0:03:30]} Qb8 {[%emt 0:01:30]} 15. Rec1 {[%emt 0:05:30]} a6 {[%emt 0:05:30]} 16. Nc3 {[%emt 0:03:30]} b5 {[%emt 0:04:30]} 17. Bd3 {[%emt 0:00:30]} Bxc3 {[%emt 0:18:30]} 18. bxc3 {[%emt 0:00:30]} Nxe5 {[%emt 0:02:30]} 19. dxe5 {[%emt 0:01:30]} Nd7 {[%emt 0:00:30]} 20. Be7 {[%emt 0:15:30]} Rfe8 {[%emt 0:05:30]} 21. Bd6 {[%emt 0:00:30]} Qa8 {[%emt 0:00:30]} 22. f3 {[%emt 0:04:30]} Nb6 {[%emt 0:00:30]} 23. Qf2 {[%emt 0:02:30]} Nd5 {[%emt 0:03:30]} 24. c4 {[%emt 0:04:30]} bxc4 {[%emt 0:08:30]} 25. Bxc4 {[%emt 0:00:30]} a5 {[%emt 0:03:30]} 26. Bxd5 {[%emt 0:03:30]} Bxd5 {[%emt 0:00:30]} 27. Rab1 {[%emt 0:05:30]} Rxc1+ {[%emt 0:00:30]} 28. Rxc1 {[%emt 0:00:30]} Rc8 {[%emt 0:00:30]} 29. Rxc8+ {[%emt 0:04:30]} Qxc8 {[%emt 0:00:30]} 30. Qd2 {[%emt 0:02:30]} a4 {[%emt 0:03:30]} 31. a3 $11 {[%emt 0:02:30]} 1/2-1/2

[Event "33rd ECCC Open 2017"]
[Site "Antalya"]
[Date "2017.10.12"]
[Round "5"]
[White "Stanic, Zoran"]
[Black "Barrett, Stephen J"]
[Result "0-1"]
[ECO "A45"]
[WhiteElo "2169"]
[BlackElo "2101"]
[Annotator "NA"]
[PlyCount "59"]
[EventType "team-tourn"]
[EventCountry "TUR"]
[SourceTitle "playchess.com"]
[Source "ChessBase"]
[SourceQuality "1"]
[WhiteTeam "Bonnevoie"]
[BlackTeam "White Rose"]
[TimeControl "40/5400+30:1800+30"]

1. d4 {[%emt 0:00:30]} Nf6 {[%emt 0:01:00]} 2. Nc3 {[%emt 0:00:30]} c5 {[%emt 0:00:30]} 3. Bg5 {[%emt 0:02:30]} e6 {[%emt 0:01:30]} 4. d5 {[%emt 0:03:30]} d6 {[%emt 0:00:30]} 5. dxe6 {[%emt 0:01:30]} fxe6 {[%emt 0:05:30]} 6. e4 {[%emt 0:00:00]} Nc6 {[%emt 0:01:30]} 7. Nf3 {[%emt 0:00:00]} Be7 {[%emt 0:00:30]} 8. Bc4 {[%emt 0:05:30]} O-O {[%emt 0:01:30]} 9. O-O {[%emt 0:05:30]} a6 $11 {[%emt 0:23:30]} 10. a4 {[%emt 0:00:30]} Ng4 {[%emt 0:00:30]} 11. Bxe7 {[%emt 0:07:30]} Qxe7 {[%emt 0:00:30]} 12. h3 {[%emt 0:03:30]} Rxf3 {[%emt 0:18:30]} 13. hxg4 {[%emt 0:03:30]} Rf8 {[%emt 0:06:30]} 14. f4 {[%emt 0:11:30]} Kh8 {[%emt 0:04:30]} 15. Ra3 {[%emt 0:24:30]} Bd7 {[%emt 0:01:30]} 16. g5 {[%emt 0:02:30]} Nd4 {[%emt 0:02:30]} 17. g3 {[%emt 0:19:24]} Bc6 {[%emt 0:04:30]} 18. Bd3 {[%emt 0:03:27]} b5 {[%emt 0:01:30]} 19. axb5 {[%emt 0:00:35]} axb5 {[%emt 0:00:30]} 20. Rxa8 {[%emt 0:00:18]} Rxa8 {[%emt 0:00:30]} 21. Rf2 {[%emt 0:00:24]} g6 {[%emt 0:01:30]} 22. b3 {[%emt 0:01:08]} Qg7 {[%emt 0:01:30]} 23. Kg2 {[%emt 0:00:27]} Nf5 {[%emt 0:03:39]} 24. Nd5 {[%emt 0:01:00]} Bxd5 {[%emt 0:00:11]} 25. Qe1 {[%emt 0:00:26]} Bc6 {[%emt 0:00:15]} 26. Qd1 {[%emt 0:00:38]} Bd5 {[%emt 0:00:30]} 27. Kh2 {[%emt 0:00:30]} Bb7 {[%emt 0:00:30]} 28. Kg2 {[%emt 0:00:30]} Bc6 {[%emt 0:00:30]} 29. Qe1 {[%emt 0:00:30]} Qd4 {[%emt 0:00:30]} 30. Kh2 {[%emt 0:00:30]} 0-1

[Event "33rd ECCC Open 2017"]
[Site "Antalya"]
[Date "2017.10.12"]
[Round "5"]
[White "Zymberi, Astrit"]
[Black "Millward, Kevin P"]
[Result "1/2-1/2"]
[ECO "A42"]
[WhiteElo "2161"]
[BlackElo "2049"]
[Annotator "NA"]
[PlyCount "106"]
[EventType "team-tourn"]
[EventCountry "TUR"]
[SourceTitle "playchess.com"]
[Source "ChessBase"]
[SourceQuality "1"]
[WhiteTeam "Hasan Pristina"]
[BlackTeam "Viking"]
[TimeControl "40/5400+30:1800+30"]

1. d4 g6 2. c4 Bg7 3. e4 d6 4. Nc3 e5 5. Nge2 Ne7 6. Be3 Nd7 7. Qd2 h6 8. O-O-O f5 9. f3 Nb6 10. b3 Be6 11. d5 Bf7 12. Kb1 Nd7 13. b4 $14 ({Besser ist} 13. g3 $16) 13... a5 14. a3 axb4 15. axb4 Nf6 16. h3 Ra6 17. Nc1 Ra3 18. Bd3 Qa8 19. Qb2 c6 20. g4 fxe4 21. fxe4 O-O 22. Nb3 cxd5 23. cxd5 Nfxd5 24. exd5 Nxd5 25. Nxd5 Bxd5 26. Bc2 Bxh1 27. Rxh1 Rf3 28. Bc1 Ra6 29. Be4 Rf8 30. Rd1 Kh8 31. Rd5 Qa7 32. Rb5 Rf2 33. Qc3 Rc6 34. Qa1 Ra6 35. Ra5 d5 36. Rxa6 bxa6 37. Bxd5 e4 38. Qa4 Qe7 39. Be3 Rf1+ 40. Nc1 Qe5 41. Qa2 Qc3 42. Qb3 Qa1+ 43. Kc2 Qe5 44. Ne2 Qa1 45. Bc1 Rf2 46. Bc4 Kh7 47. Bg8+ Kh8 48. Bc4 Kh7 49. Bg8+ Kh8 50. Bc4 Kh7 51. Bg8+ Kh8 52. Bc4 Rf1 53. Qb2 Re1 1/2-1/2